fUST/lending_fUST_20250628
["ID","MTS","AMOUNT","RATE_DAILY","PERIOD"]
[368157025,1751040649344,-1409.78,0.00021369,2]
[368157026,1751040649354,-460.0,0.00021369,2]
[368157027,1751040649363,-460.0,0.00021369,2]
[368157028,1751040649373,-460.0,0.00021369,2]
[368157029,1751040649383,-460.0,0.00021369,2]
[368157030,1751040649393,-460.0,0.00021369,2]
[368157031,1751040649402,-460.0,0.00021369,2]
[368157032,1751040649411,-460.0,0.00021369,2]
[368157033,1751040649422,-460.0,0.00021369,2]
[368157034,1751040649432,-1819.92,0.00021369,2]
[368157035,1751040649442,-460.0,0.00021369,2]
[368157036,1751040649452,-1037.81,0.00021369,2]
[368157037,1751040649462,-460.0,0.00021369,2]
[368157038,1751040649471,-460.0,0.00021369,2]
[368157039,1751040649481,-460.0,0.00021369,2]
[368157040,1751040649491,-460.0,0.00021369,2]
[368157041,1751040649500,-460.0,0.00021369,2]
[368157042,1751040649510,-460.0,0.00021369,2]
[368157043,1751040649520,-460.0,0.00021369,2]
[368157044,1751040649529,-1090.16,0.00021369,2]
[368157045,1751040649539,-799.51,0.00021369,2]
[368157046,1751040649548,-460.0,0.00021369,2]
[368157047,1751040649558,-4888.04,0.00021369,2]
[368157048,1751040649567,-2055.22,0.00021369,2]
[368157049,1751040649576,-517.02,0.00021369,2]
[368157050,1751040649586,-460.0,0.00021369,2]
[368157051,1751040649595,-460.0,0.00021369,2]
[368157052,1751040649605,-342.03887525,0.00021369,2]
[368157053,1751040649615,-460.0,0.00021369,2]
[368157054,1751040649624,-1013.11,0.00021369,2]
[368157055,1751040649634,-786.61,0.00021369,2]
[368157056,1751040649644,-3511.64,0.00021369,2]
[368157057,1751040649653,-2124.91,0.00021369,2]
[368157058,1751040649663,-460.0,0.00021369,2]
[368157059,1751040649672,-460.0,0.00021369,2]
[368157060,1751040649682,-460.54,0.00021369,2]
[368157061,1751040649692,-747.66,0.00021369,2]
[368157062,1751040649701,-460.0,0.00021369,2]
[368157063,1751040649711,-1045.12,0.00021369,2]
[368157064,1751040649721,-1451.62,0.00021369,2]
[368157065,1751040649731,-1157.5,0.00021369,2]
[368157066,1751040649740,-151.0,0.000214,4]
[368157067,1751040649749,-151.0,0.000214,3]
[368157068,1751040649759,-2847.50945802,0.00021406,2]
[368157069,1751040649768,-176.0,0.00021434,2]
[368157070,1751040649778,-1393.77226076,0.00021464,2]
[368157071,1751040649788,-500.0,0.00021475,2]
[368157072,1751040649797,-500.0,0.00021475,2]
[368157073,1751040649807,-176.0,0.00021481,2]
[368157074,1751040649816,-639.89679522,0.00021519,2]
[368157075,1751040649825,-176.0,0.00021536,2]
[368157076,1751040649839,-313.23447644,0.00021586,2]
[368157077,1751040649848,-547.23150364,0.00021596,2]
[368157078,1751040649857,-1500.0,0.00021616,2]
[368157079,1751040649866,-500.0,0.00021623,2]
[368157080,1751040649877,-500.0,0.00021623,2]
[368157081,1751040649887,-500.0,0.00021642,2]
[368157082,1751040649896,-500.0,0.00021642,2]
[368157083,1751040649908,-494.99953402,0.00021642,2]
[368157084,1751040649918,-583.896093,0.00021642,2]
[368157085,1751040649927,-362.11921019,0.00021642,2]
[368157086,1751040649938,-561.73,0.00021643,2]
[368157087,1751040649948,-460.0,0.00021643,2]
[368157088,1751040649957,-192.93,0.00021643,2]
[368157089,1751040649967,-460.0,0.00021643,2]
[368157090,1751040649976,-539.7,0.00021643,2]
[368157091,1751040649986,-460.0,0.00021643,2]
[368157092,1751040650090,-460.0,0.00021643,2]
[368157093,1751040650101,-460.0,0.00021643,2]
[368157094,1751040650111,-463.18,0.00021643,2]
[368157095,1751040650119,-460.0,0.00021643,2]
[368157096,1751040650129,-460.0,0.00021643,2]
[368157097,1751040650139,-1314.45,0.00021643,2]
[368157098,1751040650150,-986.84,0.00021643,2]
[368157099,1751040650160,-460.0,0.00021643,2]
[368157100,1751040650170,-460.0,0.00021643,2]
[368157101,1751040650179,-460.0,0.00021643,2]
[368157102,1751040650189,-1003.58,0.00021643,2]
[368157103,1751040650199,-1026.74,0.00021643,2]
[368157104,1751040650208,-774.49,0.00021643,2]
[368157105,1751040650217,-2689.99,0.00021643,2]
[368157106,1751040650227,-805.81,0.00021643,2]
[368157107,1751040650237,-460.0,0.00021643,2]
[368157108,1751040650246,-612.2,0.00021643,2]
[368157109,1751040650256,-460.0,0.00021643,2]
[368157110,1751040650265,-323.21,0.00021643,2]
[368157111,1751040650274,-1209.59,0.00021643,2]
[368157112,1751040650284,-1409.78,0.00021643,2]
[368157113,1751040650294,-460.0,0.00021643,2]
[368157114,1751040650304,-460.0,0.00021643,2]
[368157115,1751040650313,-460.0,0.00021643,2]
[368157116,1751040650323,-442.43481296,0.00021643,2]
[368157117,1751040650334,-460.0,0.00021643,2]
[368157118,1751040650343,-460.0,0.00021643,2]
[368157119,1751040650353,-460.0,0.00021643,2]
[368157120,1751040650362,-460.0,0.00021643,2]
[368157121,1751040650372,-1819.92,0.00021643,2]
[368157122,1751040650381,-460.0,0.00021643,2]
[368157123,1751040650391,-1037.81,0.00021643,2]
[368157124,1751040650401,-460.0,0.00021643,2]
[368157125,1751040650411,-460.0,0.00021643,2]
[368157126,1751040650421,-460.0,0.00021643,2]
[368157127,1751040650430,-460.0,0.00021643,2]
[368157128,1751040650440,-460.0,0.00021643,2]
[368157129,1751040650450,-406.18,0.00021643,2]
[368157130,1751040650460,-460.0,0.00021643,2]
[368157131,1751040650470,-1090.16,0.00021643,2]
[368157132,1751040650480,-799.51,0.00021643,2]
[368157133,1751040650489,-296.4,0.00021643,2]
[368157134,1751040650499,-4888.04,0.00021643,2]
[368157135,1751040650509,-2055.22,0.00021643,2]
[368157136,1751040650519,-517.02,0.00021643,2]
[368157137,1751040650529,-460.0,0.00021643,2]
[368157138,1751040650539,-460.0,0.00021643,2]
[368157139,1751040650548,-460.0,0.00021643,2]
[368157140,1751040650558,-1013.11,0.00021643,2]
[368157141,1751040650568,-786.61,0.00021643,2]
[368157142,1751040650577,-3511.64,0.00021643,2]
[368157143,1751040650588,-2124.91,0.00021643,2]
[368157144,1751040650597,-460.0,0.00021643,2]
[368157145,1751040650607,-460.0,0.00021643,2]
[368157146,1751040650617,-460.54,0.00021643,2]
[368157147,1751040650627,-747.66,0.00021643,2]
[368157148,1751040650636,-460.0,0.00021643,2]
[368157149,1751040650646,-1045.12,0.00021643,2]
[368157150,1751040650656,-1451.62,0.00021643,2]
[368157151,1751040650665,-1157.5,0.00021643,2]
[368157152,1751040650675,-500.0,0.00021644,2]
[368157153,1751040650684,-500.0,0.00021644,2]
[368157154,1751040650694,-500.0,0.00021644,2]
[368157155,1751040650704,-500.0,0.00021644,2]
[368157156,1751040650714,-600.0,0.00021644,2]
[368157157,1751040650723,-500.0,0.00021644,2]
[368157158,1751040650732,-500.0,0.00021644,2]
[368157159,1751040650742,-404.33991464,0.00021648,2]
[368157160,1751040650751,-306.74033047,0.00021648,2]
[368157161,1751040650760,-151.0,0.000217,4]
[368157162,1751040650769,-151.0,0.000217,3]
[368157163,1751040650779,-210.01914849,0.00021786,2]
[368157164,1751040650789,-587.0,0.00021811,2]
[368157165,1751040650798,-176.0,0.00021838,2]
[368157166,1751040650807,-403.0,0.00021875,2]
[368157167,1751040650816,-731.76911251,0.00021899,2]
[368157168,1751040651140,-460.0,0.00019178,2]
[368157169,1751040651151,-40.0,0.00019178,2]
[368157170,1751040651164,-115.0,0.00019178,2]
[368157171,1751040651174,-460.0,0.00019452,2]
[368157172,1751040651183,-460.0,0.00019726,2]
[368157173,1751040651193,-7924.10665626,0.000199,2]
[368157174,1751040651202,-592.95177924,0.00019999,2]
[368157175,1751040651212,-460.0,0.0002,2]
[368157176,1751040651221,-7924.10665619,0.00020107,2]
[368157177,1751040651231,-460.0,0.00020273,2]
[368157178,1751040651242,-2035.33490832,0.00020314,3]
[368157179,1751040651254,-2181.5266109,0.00020314,3]
[368157180,1751040652555,-514.1,0.00019178,2]
[368157181,1751040652564,-3707.24513697,0.00020314,3]
[368157182,1751040652573,-141.5079934,0.00020521,3]
[368157183,1751040652586,-7782.59866279,0.00020521,3]
[368157184,1751040652596,-460.0,0.00020547,2]
[368157185,1751040652605,-1365.18590011,0.00020728,3]
[368157186,1751040652623,-352.156064,0.00020728,3]
[368157187,1751040652638,-544.73,0.00020728,3]
[368157188,1751040652653,-422.748628,0.00020728,3]
[368157191,1751040838136,164.132208,0.00013699,2]
[368157192,1751040889528,155.0,0.00016438,3]
[368157199,1751041550936,-1493.74484624,0.000182,2]
[368157200,1751041551089,-513.48117791,0.000182,2]
[368157203,1751041629990,-394.35756043,0.00018199,2]
[368157205,1751041650098,-19.64243957,0.00018199,2]
[368157206,1751041650124,-2785.77397585,0.000182,2]
[368157207,1751041650144,-300.0,0.000182,2]
[368157208,1751041650169,-300.0,0.000182,2]
[368157209,1751041650191,-2284.33159607,0.00018201,2]
[368157213,1751041725505,150.999999,0.00025959,120]
[368157309,1751041832139,-2252.5480884,0.00018201,2]
[368157310,1751041832151,-5463.12031553,0.00018201,2]
[368157311,1751041832162,-318.637349,0.00018333,2]
[368157312,1751041832175,-300.0,0.00018658,2]
[368157313,1751041832184,-500.0,0.00018659,2]
[368157314,1751041832193,-500.0,0.00018659,2]
[368157315,1751041832202,-519.62748713,0.00018659,2]
[368157316,1751041832212,-500.0,0.00018659,2]
[368157317,1751041832221,-433.37286012,0.00018659,2]
[368157318,1751041832230,-500.0,0.00018659,2]
[368157319,1751041832239,-356.31703792,0.00018659,2]
[368157320,1751041832249,-500.0,0.00018659,2]
[368157321,1751041832259,-500.0,0.00018659,2]
[368157322,1751041832268,-500.0,0.00018659,2]
[368157323,1751041832277,-500.0,0.00018659,2]
[368157324,1751041832286,-500.0,0.00018659,2]
[368157325,1751041832294,-500.0,0.00018659,2]
[368157326,1751041832302,-500.0,0.00018659,2]
[368157327,1751041832311,-500.0,0.00018659,2]
[368157329,1751041832319,-500.0,0.00018659,2]
[368157331,1751041832328,-500.0,0.00018659,2]
[368157332,1751041832337,-500.0,0.00018659,2]
[368157334,1751041832346,-500.0,0.00018659,2]
[368157336,1751041832355,-500.0,0.00018659,2]
[368157338,1751041832364,-500.0,0.00018659,2]
[368157339,1751041832373,-500.0,0.00018659,2]
[368157341,1751041832382,-500.0,0.00018659,2]
[368157343,1751041832391,-500.0,0.00018659,2]
[368157345,1751041832399,-468.16340788,0.00018659,2]
[368157346,1751041832410,-153.4619972,0.00018659,2]
[368157347,1751041832419,-400.77252629,0.0001866,2]
[368157348,1751041832430,-21599.22747371,0.0001866,2]
[368157349,1751041832439,-628.46838559,0.000189,2]
[368157350,1751041832448,-3962.8924438,0.00019083,2]
[368157352,1751041832456,-161.88,0.00019168,3]
[368157354,1751041832465,-485.66,0.00019168,3]
[368157356,1751041832474,-500.0,0.00019173,2]
[368157358,1751041832483,-500.0,0.00019173,2]
[368157360,1751041832492,-500.0,0.00019173,2]
[368157362,1751041832500,-500.0,0.00019173,2]
[368157364,1751041832509,-500.0,0.00019173,2]
[368157366,1751041832519,-211.78202519,0.00019173,2]
[368157368,1751041832527,-500.0,0.00019173,2]
[368157370,1751041832537,-598.76593735,0.00019173,2]
[368157372,1751041832546,-500.0,0.00019173,2]
[368157374,1751041832555,-500.0,0.00019173,2]
[368157376,1751041832564,-500.0,0.00019173,2]
[368157378,1751041832574,-500.0,0.00019173,2]
[368157380,1751041832583,-232.72454134,0.00019173,2]
[368157382,1751041832592,-195.03929553,0.00019173,2]
[368157384,1751041832601,-500.0,0.00019173,2]
[368157385,1751041832611,-500.0,0.00019173,2]
[368157386,1751041832619,-500.0,0.00019173,2]
[368157387,1751041832629,-500.0,0.00019173,2]
[368157388,1751041832638,-500.0,0.00019173,2]
[368157389,1751041832647,-224.68595389,0.00019173,2]
[368157390,1751041832657,-500.0,0.00019173,2]
[368157391,1751041832666,-500.0,0.00019177,2]
[368157392,1751041832675,-500.0,0.00019177,2]
[368157393,1751041832684,-500.0,0.00019177,2]
[368157394,1751041832693,-500.0,0.00019177,2]
[368157395,1751041832703,-500.0,0.00019177,2]
[368157396,1751041832713,-344.91407974,0.00019177,2]
[368157397,1751041832722,-638.86469163,0.00019177,2]
[368157398,1751041832732,-500.0,0.00019177,2]
[368157399,1751041832741,-500.0,0.00019177,2]
[368157400,1751041832750,-500.0,0.00019177,2]
[368157401,1751041832759,-500.0,0.00019177,2]
[368157402,1751041832768,-500.0,0.00019177,2]
[368157403,1751041832778,-460.0,0.00019178,2]
[368157404,1751041832787,-409.80859155,0.00019178,2]
[368157405,1751041832796,-205.93978856,0.00019178,2]
[368157406,1751041832805,-437.58396113,0.00019178,2]
[368157407,1751041832816,-460.0,0.00019178,2]
[368157408,1751041832825,-460.0,0.00019178,2]
[368157409,1751041832834,-460.0,0.00019178,2]
[368157410,1751041832843,-460.0,0.00019178,2]
[368157411,1751041832852,-460.0,0.00019178,2]
[368157412,1751041832861,-465.22264556,0.00019178,2]
[368157413,1751041832871,-460.0,0.00019178,2]
[368157414,1751041832880,-460.0,0.00019178,2]
[368157415,1751041832889,-460.0,0.00019178,2]
[368157416,1751041832899,-460.0,0.00019178,2]
[368157417,1751041832908,-460.0,0.00019178,2]
[368157418,1751041832917,-479.79176108,0.00019178,2]
[368157419,1751041832926,-469.83006638,0.00019178,2]
[368157420,1751041832936,-460.0,0.00019178,2]
[368157421,1751041832945,-460.0,0.00019178,2]
[368157422,1751041832955,-291.69612413,0.00019178,2]
[368157423,1751041832964,-466.89549641,0.00019178,2]
[368157424,1751041832974,-408.81387624,0.00019178,2]
[368157425,1751041832983,-460.0,0.00019178,2]
[368157426,1751041832992,-286.25679009,0.00019178,2]
[368157427,1751041833002,-460.0,0.00019178,2]
[368157428,1751041833011,-460.0,0.00019178,2]
[368157429,1751041833021,-460.0,0.00019178,2]
[368157430,1751041833031,-460.0,0.00019178,2]
[368157431,1751041833041,-460.0,0.00019178,2]
[368157432,1751041833050,-460.0,0.00019178,2]
[368157433,1751041833061,-460.6014622,0.00019178,2]
[368157434,1751041833071,-248.00596284,0.00019178,2]
[368157435,1751041833081,-460.0,0.00019178,2]
[368157436,1751041833091,-460.0,0.00019178,2]
[368157437,1751041833100,-460.0,0.00019178,2]
[368157438,1751041833110,-460.0,0.00019178,2]
[368157439,1751041833120,-460.0,0.00019178,2]
[368157440,1751041833131,-460.0,0.00019178,2]
[368157441,1751041833140,-296.85684112,0.00019178,2]
[368157442,1751041833149,-565.35306032,0.00019178,2]
[368157443,1751041833159,-460.0,0.00019178,2]
[368157444,1751041833170,-460.0,0.00019178,2]
[368157445,1751041833179,-460.0,0.00019178,2]
[368157446,1751041833189,-445.64828647,0.00019178,2]
[368157447,1751041833198,-460.0,0.00019178,2]
[368157448,1751041833208,-460.0,0.00019178,2]
[368157449,1751041833218,-460.0,0.00019178,2]
[368157450,1751041833228,-460.0,0.00019178,2]
[368157451,1751041833238,-460.0,0.00019178,2]
[368157452,1751041833250,-460.0,0.00019178,2]
[368157453,1751041833260,-460.0,0.00019178,2]
[368157454,1751041833270,-460.0,0.00019178,2]
[368157455,1751041833279,-460.0,0.00019178,2]
[368157456,1751041833288,-460.0,0.00019178,2]
[368157457,1751041833298,-460.0,0.00019178,2]
[368157458,1751041833307,-460.0,0.00019178,2]
[368157459,1751041833317,-460.0,0.00019178,2]
[368157460,1751041833327,-460.0,0.00019178,2]
[368157461,1751041833336,-460.0,0.00019178,2]
[368157462,1751041833346,-460.0,0.00019178,2]
[368157463,1751041833355,-455.09578079,0.00019178,2]
[368157464,1751041833365,-594.71492387,0.00019178,2]
[368157465,1751041833375,-460.0,0.00019178,2]
[368157466,1751041833384,-460.0,0.00019178,2]
[368157467,1751041833393,-337.37471323,0.00019178,2]
[368157468,1751041833403,-460.0,0.00019178,2]
[368157469,1751041833412,-460.0,0.00019178,2]
[368157470,1751041833550,-460.0,0.00019178,2]
[368157471,1751041833562,-460.0,0.00019178,2]
[368157472,1751041833572,-460.0,0.00019178,2]
[368157473,1751041833582,-460.0,0.00019178,2]
[368157474,1751041833592,-460.0,0.00019178,2]
[368157475,1751041833602,-460.0,0.00019178,2]
[368157476,1751041833612,-460.0,0.00019178,2]
[368157477,1751041833622,-460.0,0.00019178,2]
[368157478,1751041833631,-460.0,0.00019178,2]
[368157479,1751041833641,-431.73699097,0.00019178,2]
[368157480,1751041833651,-460.0,0.00019178,2]
[368157481,1751041833660,-460.0,0.00019178,2]
[368157482,1751041833670,-460.0,0.00019178,2]
[368157483,1751041833679,-460.0,0.00019178,2]
[368157484,1751041833688,-460.0,0.00019178,2]
[368157485,1751041833698,-462.31124312,0.00019178,2]
[368157486,1751041833707,-460.0,0.00019178,2]
[368157487,1751041833717,-460.0,0.00019178,2]
[368157488,1751041833727,-460.0,0.00019178,2]
[368157489,1751041833736,-460.0,0.00019178,2]
[368157490,1751041833746,-460.0,0.00019178,2]
[368157491,1751041833756,-460.0,0.00019178,2]
[368157492,1751041833766,-460.0,0.00019178,2]
[368157493,1751041833776,-460.0,0.00019178,2]
[368157494,1751041833785,-460.0,0.00019178,2]
[368157495,1751041833795,-460.0,0.00019178,2]
[368157496,1751041833806,-460.0,0.00019178,2]
[368157497,1751041833815,-460.0,0.00019178,2]
[368157498,1751041833825,-460.0,0.00019178,2]
[368157499,1751041833835,-460.0,0.00019178,2]
[368157500,1751041833845,-460.0,0.00019178,2]
[368157501,1751041833855,-460.0,0.00019178,2]
[368157502,1751041833864,-460.0,0.00019178,2]
[368157503,1751041833874,-460.0,0.00019178,2]
[368157504,1751041833883,-460.0,0.00019178,2]
[368157505,1751041833893,-460.0,0.00019178,2]
[368157506,1751041833902,-460.0,0.00019178,2]
[368157507,1751041833912,-460.0,0.00019178,2]
[368157508,1751041833921,-460.0,0.00019178,2]
[368157509,1751041833930,-460.0,0.00019178,2]
[368157510,1751041833939,-420.5673925,0.00019178,2]
[368157511,1751041833949,-460.0,0.00019178,2]
[368157512,1751041833958,-460.0,0.00019178,2]
[368157513,1751041833967,-404.04648942,0.00019178,2]
[368157514,1751041833977,-460.0,0.00019178,2]
[368157515,1751041833986,-460.0,0.00019178,2]
[368157516,1751041833996,-460.0,0.00019178,2]
[368157517,1751041834006,-460.0,0.00019178,2]
[368157518,1751041834015,-460.0,0.00019178,2]
[368157519,1751041834025,-460.0,0.00019178,2]
[368157520,1751041834034,-460.0,0.00019178,2]
[368157521,1751041834044,-460.0,0.00019178,2]
[368157522,1751041834054,-460.0,0.00019178,2]
[368157523,1751041834064,-460.0,0.00019178,2]
[368157524,1751041834074,-460.0,0.00019178,2]
[368157525,1751041834083,-460.0,0.00019178,2]
[368157526,1751041834092,-286.32114579,0.00019178,2]
[368157527,1751041834102,-460.0,0.00019178,2]
[368157528,1751041834111,-460.0,0.00019178,2]
[368157529,1751041834120,-435.71406586,0.00019178,2]
[368157530,1751041834130,-460.0,0.00019178,2]
[368157531,1751041834139,-460.0,0.00019178,2]
[368157532,1751041834149,-460.0,0.00019178,2]
[368157533,1751041834159,-460.0,0.00019178,2]
[368157534,1751041834171,-460.0,0.00019178,2]
[368157535,1751041834180,-460.0,0.00019178,2]
[368157536,1751041834189,-460.0,0.00019178,2]
[368157537,1751041834199,-460.0,0.00019178,2]
[368157538,1751041834210,-460.0,0.00019178,2]
[368157539,1751041834219,-460.0,0.00019178,2]
[368157540,1751041834228,-460.0,0.00019178,2]
[368157541,1751041834237,-322.57550503,0.00019178,2]
[368157542,1751041834248,-460.0,0.00019178,2]
[368157543,1751041834257,-460.0,0.00019178,2]
[368157544,1751041834266,-460.0,0.00019178,2]
[368157545,1751041834275,-539.95755019,0.00019178,2]
[368157546,1751041834284,-460.0,0.00019178,2]
[368157547,1751041834294,-460.0,0.00019178,2]
[368157548,1751041834303,-460.0,0.00019178,2]
[368157549,1751041834314,-460.0,0.00019178,2]
[368157550,1751041834324,-460.0,0.00019178,2]
[368157551,1751041834333,-460.0,0.00019178,2]
[368157552,1751041834343,-460.0,0.00019178,2]
[368157553,1751041834352,-460.0,0.00019178,2]
[368157554,1751041834361,-460.0,0.00019178,2]
[368157555,1751041834371,-465.1755697,0.00019178,2]
[368157556,1751041834380,-460.0,0.00019178,2]
[368157557,1751041834389,-460.0,0.00019178,2]
[368157558,1751041834398,-468.46302423,0.00019178,2]
[368157559,1751041834407,-460.0,0.00019178,2]
[368157560,1751041834417,-460.0,0.00019178,2]
[368157561,1751041834426,-460.0,0.00019178,2]
[368157562,1751041834435,-460.0,0.00019178,2]
[368157563,1751041834444,-460.0,0.00019178,2]
[368157564,1751041834454,-466.03578202,0.00019178,2]
[368157565,1751041834463,-235.83248476,0.00019178,2]
[368157566,1751041834472,-460.0,0.00019178,2]
[368157567,1751041834482,-1366.74,0.00019178,2]
[368157568,1751041834491,-1366.74,0.00019178,2]
[368157569,1751041834500,-1366.74,0.00019178,2]
[368157570,1751041834510,-1366.74,0.00019178,2]
[368157571,1751041834520,-531.75625788,0.00019178,2]
[368157572,1751041834530,-1366.74,0.00019178,2]
[368157573,1751041834539,-460.0,0.00019178,2]
[368157574,1751041834548,-1366.74,0.00019178,2]
[368157575,1751041834557,-460.0,0.00019178,2]
[368157576,1751041834567,-1366.74,0.00019178,2]
[368157577,1751041834575,-158.21075791,0.00019178,2]
[368157578,1751041834585,-460.0,0.00019178,2]
[368157579,1751041834594,-460.0,0.00019178,2]
[368157580,1751041834603,-460.0,0.00019178,2]
[368157581,1751041834612,-460.0,0.00019178,2]
[368157582,1751041834621,-460.0,0.00019178,2]
[368157583,1751041834631,-460.0,0.00019178,2]
[368157584,1751041834640,-388.7496603,0.00019178,2]
[368157585,1751041834650,-460.0,0.00019178,2]
[368157586,1751041834659,-460.0,0.00019178,2]
[368157587,1751041834668,-460.0,0.00019178,2]
[368157588,1751041834678,-460.0,0.00019178,2]
[368157589,1751041834694,-460.0,0.00019178,2]
[368157590,1751041834711,-462.08206364,0.00019178,2]
[368157591,1751041834719,-460.0,0.00019178,2]
[368157592,1751041834729,-460.0,0.00019178,2]
[368157593,1751041834738,-460.0,0.00019178,2]
[368157594,1751041834748,-460.0,0.00019178,2]
[368157595,1751041834758,-460.0,0.00019178,2]
[368157596,1751041834767,-460.0,0.00019178,2]
[368157597,1751041834776,-460.0,0.00019178,2]
[368157598,1751041834785,-460.0,0.00019178,2]
[368157599,1751041834794,-460.0,0.00019178,2]
[368157600,1751041834805,-589.65,0.00019178,2]
[368157601,1751041834815,-460.0,0.00019178,2]
[368157602,1751041834824,-460.0,0.00019178,2]
[368157603,1751041834832,-460.0,0.00019178,2]
[368157604,1751041834841,-460.0,0.00019178,2]
[368157605,1751041834850,-460.0,0.00019178,2]
[368157606,1751041834859,-460.0,0.00019178,2]
[368157607,1751041834868,-460.0,0.00019178,2]
[368157608,1751041834877,-460.0,0.00019178,2]
[368157609,1751041834886,-460.0,0.00019178,2]
[368157610,1751041834895,-460.0,0.00019178,2]
[368157611,1751041834904,-460.0,0.00019178,2]
[368157612,1751041834914,-460.0,0.00019178,2]
[368157613,1751041834922,-460.0,0.00019178,2]
[368157614,1751041834931,-460.0,0.00019178,2]
[368157615,1751041834940,-460.0,0.00019178,2]
[368157616,1751041834949,-460.0,0.00019178,2]
[368157617,1751041834958,-460.0,0.00019178,2]
[368157618,1751041834968,-460.0,0.00019178,2]
[368157619,1751041834977,-460.0,0.00019178,2]
[368157620,1751041834986,-460.0,0.00019178,2]
[368157621,1751041834995,-460.0,0.00019178,2]
[368157622,1751041835005,-460.0,0.00019178,2]
[368157623,1751041835014,-500.0,0.00019178,2]
[368157624,1751041835023,-340.97013817,0.00019178,2]
[368157625,1751041835031,-500.0,0.00019178,2]
[368157626,1751041835041,-460.0,0.00019178,2]
[368157627,1751041835050,-460.0,0.00019178,2]
[368157628,1751041835059,-500.0,0.00019178,2]
[368157629,1751041835068,-500.0,0.00019178,2]
[368157630,1751041835076,-500.0,0.00019178,2]
[368157631,1751041835086,-500.0,0.00019178,2]
[368157632,1751041835095,-500.0,0.00019178,2]
[368157633,1751041835104,-397.7611654,0.00019178,2]
[368157634,1751041835113,-460.0,0.00019178,2]
[368157635,1751041835122,-460.0,0.00019178,2]
[368157636,1751041835131,-488.59613851,0.00019178,2]
[368157637,1751041835140,-460.0,0.00019178,2]
[368157638,1751041835150,-460.0,0.00019178,2]
[368157639,1751041835160,-460.0,0.00019178,2]
[368157640,1751041835172,-460.0,0.00019178,2]
[368157641,1751041835181,-684.79,0.00019178,2]
[368157642,1751041835190,-460.0,0.00019178,2]
[368157643,1751041835199,-460.0,0.00019178,2]
[368157644,1751041835210,-460.0,0.00019178,2]
[368157645,1751041835219,-460.0,0.00019178,2]
[368157646,1751041835228,-460.0,0.00019178,2]
[368157647,1751041835237,-460.0,0.00019178,2]
[368157648,1751041835248,-460.0,0.00019178,2]
[368157649,1751041835257,-555.16,0.00019178,2]
[368157650,1751041835266,-460.0,0.00019178,2]
[368157651,1751041835276,-460.0,0.00019178,2]
[368157652,1751041835285,-460.0,0.00019178,2]
[368157653,1751041835294,-428.30180076,0.00019178,2]
[368157654,1751041835303,-460.0,0.00019178,2]
[368157655,1751041835312,-460.0,0.00019178,2]
[368157656,1751041835322,-460.0,0.00019178,2]
[368157657,1751041835330,-460.0,0.00019178,2]
[368157658,1751041835340,-460.0,0.00019178,2]